{"text_format":"3","workbook":"xlsx","n_sheets":13,"sheets":["Begin","Basisbeginselen","Inleiding tot de functies","GEMIDDELDE","MIN EN MAX","Datum en tijd","Tekst en getallen samenvoegen","ALS-instructies","VERT.ZOEKEN","Voorwaardelijke functies","Wizard Functie","Fouten in formules","Meer informatie"],"not_rendered":{"images":30,"defined_names":21},"read":"whole","date_system":"1900"}

{"sheet":"Begin","index":0,"n_rows":4,"n_cols":1,"rows_kept":4}
[]
["Aan de slag met formules"]
["In slechts een paar stappen zult u aan de slag kunnen met formules en functies in Excel, 's werelds krachtigste spreadsheet-app."]
["Druk op Ctrl+Home om terug naar boven te gaan. Als u de rondleiding wilt starten, drukt u op Ctrl+Page Down."]

{"sheet":"Basisbeginselen","index":1,"n_rows":43,"n_cols":10,"rows_kept":43}
["Basisbeginselen: rekenen met Excel"]
["U kunt Optellen, Aftrekken, Vermenigvuldigen en Delen in Excel zonder ingebouwde functies te gebruiken. U hoeft alleen de operatoren +, -, *, / te gebruiken. Alle formules beginnen met een isgelijkteken (=).\n",null,"Getallen om gebruiken:",null,"Bewerking:","Formules:","Antwoorden:"]
["Selecteer cel F3 om Op te tellen, typ =C3+C4 en druk op Enter. \n",null,1,null,"Optellen (+) ",null,{"$f":"C3+C4","v":3}]
["Selecteer cel F4 om Af te trekken, typ =C3-C4 en druk op Enter. ",null,2,null,"Aftrekken (-) ",null,{"$f":"C3-C4","v":-1}]
["Selecteer cel F5 om te Vermenigvuldigen, typ =C3*C4 en druk op Enter.\n",{"$nulls":3},"Vermenigvuldigen (*) ",null,{"$f":"C3*C4","v":2}]
["Selecteer cel F6 om te Delen, typ =C3/C4 en druk op Enter.\n",{"$nulls":3},"Delen (/) ",null,{"$f":"C3/C4","v":0.5}]
["Bekijk dit: verander hier de getallen in de cellen C3 en C4 en bekijk hoe de resultaten van de formule automatisch worden gewijzigd.",{"$nulls":3},"Tot de macht verheffen (^) ",null,{"$f":"C3^C4","v":1}]
["EXTRA PUNTEN: U kunt een waarde tot een bepaalde macht verheffen via het dakje-symbool (^), zoals = A1^A2. Voer het in met Shift+6. Typ in cel F7, =C3^C4."]
["Geavanceerde functies"]
["Volgende stap"]
["Meer informatie over formules, cellen en bereiken"]
["Excel is opgebouwd uit afzonderlijke cellen die zijn ingedeeld in rijen en kolommen. Rijen hebben nummers en kolommen letters. Er zijn meer dan 1 miljoen rijen en 16.000 kolommen en u kunt overal formules en functies in plaatsen. \n"]
["Formules kunnen celverwijzingen, bereiken van celverwijzingen, operatoren en constanten bevatten. Hieronder ziet u allemaal voorbeelden van formules:\n\n=A1+B1\n=10+20\n=SOM(A1:A10)\n\n"]
["U ziet dat we in het derde voorbeeld hierboven de functie SOM hebben gebruikt. Een functie is een ingebouwde opdracht die een waarde of waarden op een bepaalde manier berekent en een resultaat retourneert. De functie SOM berekent bijvoorbeeld het totaal van de celverwijzingen of bereiken die u opgeeft. In dit voorbeeld wordt het totaal van de cellen A1 tot en met A10 berekend. Excel bevat meer dan 400 functies, die u op het tabblad Formules kunt bekijken.\n"]
["Formules met functies beginnen met een isgelijkteken, waarna de functienaam met tussen haakjes de argumenten (de waarden die een functie gebruikt voor de berekening) volgt. \n"]
["U kunt een formule bevestigen door op Enter te drukken. Wanneer u dat doet, wordt de formule berekend en het resultaat weergegeven in de cel. Als u de formule zelf wilt zien, kunt u op de formulebalk onder het lint kijken of op F2 drukken om naar de bewerkingsmodus te gaan, waar u de formule in de cel ziet. Druk nogmaals op Enter om de formule te voltooien en het resultaat te berekenen.\n\n"]
["Wat uitleg over formules"]
["=10+20 is een formule waar 10 en 20 constanten zijn en het teken + de operator."]
["=SOM(A1:A10) is een formule, waar SOM de naam van de functie is en de haakjes de formuleargumenten bevatten en A1: A10 het celbereik is voor de functie."]
["=SOM(A1:A10;C1:C10) is een formule, waar SOM de naam van de functie is, de haakjes de formuleargumenten bevatten en A1: A10;C1:C10 de celbereiken zijn voor de functie, gescheiden door een komma."]
["HANDIG OM TE WETEN: Constanten zijn waarden die u in cellen of formules invoert. Hoewel =10+20 mogelijk hetzelfde resultaat geeft als =A1+B1, constanten zijn geen goede gewoonte. Hoe komt dat? Omdat u de constante niet eenvoudig kunt zien zonder de cel te selecteren en ernaar te zoeken. Dat maakt het moeilijk om later te wijzigen. Het is veel beter om constanten in cellen te plaatsen, waar ze eenvoudig aangepast kunnen worden en waarnaar wordt verwezen in formules.\n\nBijvoorbeeld: Selecteer de gele cel met 12 hieronder. U ziet dat we de functie SOM gebruikt hebben met een bereik van cellen. We hebben niet rechtstreeks ‘4’ of ‘8’ in de formule getypt. \n"]
["Vorige"]
["Volgende"]
["Meer informatie op internet"]
["Excel gebruiken als rekenmachine"]
[" Overzicht van formules in Excel"]
["Excel-functies (per categorie) "]
["Excel-functies (alfabetisch) "]
["Gratis onlinetraining voor Excel"]
{"$rows_empty":10}
[{"$nulls":9},"Waarden:"]
[{"$nulls":9},4]
[{"$nulls":9},8]
[{"$nulls":9},{"$f":"SUM(J41:J42)","v":12}]

{"sheet":"Inleiding tot de functies","index":2,"n_rows":51,"n_cols":7,"rows_kept":51}
["Inleiding tot functies"]
["Met functies kunt u een aantal dingen doen, zoals wiskundige bewerkingen uitvoeren, waarden opzoeken en zelfs datums en tijden berekenen. Laten we een paar manieren proberen om waarden bij elkaar op te tellen met de functie SOM.",null,"Fruit","Bedrag",null,"Vlees","Bedrag"]
["Onder de kolom Aantal voor Fruit (cel D7, typt u =SOM(D3:D6) of =SOM(, en selecteer dat bereik met de muis en druk op Enter. Hiermee worden de waarden in cellen D3, D4, D5 en D6 opgeteld. Uw antwoord moet 170 zijn.\n",null,"Appels",50,null,"Rundvlees",50]
["Nu proberen we AutoSom. Selecteer de cel onder de kolom voor Vlees (cel G7), ga vervolgens naar Formules > AutoSom > selecteer SOM. U ziet dat de formule automatisch voor u wordt ingevoerd. Druk op Enter om te bevestigen. De AutoSom-functie bevat alle meest voorkomende functies.\n",null,"Sinaasappels",20,null,"Kip",30]
["Hier is een handig sneltoets. Selecteer cel D15 en druk op Alt =, vervolgens Enter. Hiermee wordt automatisch SOM voor u ingevuld.",null,"Bananen",60,null,"Varken",10]
["Geavanceerde functies",null,"Citroenen",40,null,"Vis",50]
["EXTRA PUNTEN\nProbeer functie AANTAL met een van de methoden die u al hebt geprobeerd. De functie AANTAL telt het aantal cellen in een bereik met getallen.",null,"SUM > ",{"$f":"SUM(D3:D6)","v":170},null,"SUM > "]
["Volgende stap"]
["Meer informatie over functies",null,"Artikel","Bedrag",null,"Artikel","Bedrag"]
["Ga naar het tabblad formules en blader door de Functiebibliotheek waarin functies worden gesorteerd op categorie, zoals Tekst, Datum en tijd, enzovoort. Met Functie invoegen kunt u zoeken naar functies op naam en de Wizard Functie starten waarmee u de formule kunt maken. \n\nWanneer u begint een functienaam te typen nadat u op = hebt gedrukt, wordt Excel Intellisense gestart, dat alle functies die beginnen met de letters die u typt weergeeft. Wanneer u de gewenste functie hebt gevonden, drukt u op Tab en in Excel wordt automatisch de naam van de functie voltooid en het openingshaakje getypt. Ook de optionele en vereiste argumenten worden weergegeven. \n\n\n\nNu bekijken we de structuur van een paar functies. De functie SOM is als volgt gestructureerd:",null,"Brood",50,null,"Brood",50]
["De functie SOM kan als volgt worden samengevat: Retourneer het totaal van alle waarden in cellen D35 t/m D38 en alles in kolom H. SOM is de naam van de functie, D35:D38 is het eerste bereikargument, dat bijna altijd vereist is, en H:H is het tweede bereikargument, gescheiden door een komma. Nu proberen we er een die geen argumenten nodig heeft.\n",null,"Donuts",100,null,"Donuts",100]
["De functie VANDAAG geeft de datum van vandaag als resultaat. Die wordt automatisch bijgewerkt wanneer Excel opnieuw berekent.",null,"Koekjes",40,null,"Koekjes",40]
["OOK HANDIG\nSelecteer deze cellen. Zoek vervolgens in de rechterbenedenhoek van het Excel-venster naar SOM: 170 op de onderste balk. Dat is de Statusbalk en het is nog een andere manier om snel een totaal en andere informatie over een geselecteerde cel of bereik te vinden. ",null,"Cake",50,null,"Cake",50]
["BELANGRIJKE INFORMATIE\nDubbelklik op deze cel. U ziet hier 100 staan aan het einde van de formule. Hoewel het mogelijk is om getallen op te nemen in een formule zoals deze, wordt dit afgeraden tenzij het echt absoluut noodzakelijk is. Dit getal wordt een constante genoemd en het is gemakkelijk om te vergeten dat er een constante in de formule staat. Het is raadzaam om in plaats hiervan een celverwijzing te gebruiken, bijvoorbeeld naar cel F51. Op die manier is de formule veel duidelijker en wordt er niks gemist. ",null,"Taarten",20,null,"Taarten",20]
["Meer informatie op internet",null,"SUM > ",null,null,"AANTAL >"]
["Alles over de functie SOM"]
["Gebruik AutoSom om getallen op te tellen"]
["Alles over de functie AANTAL"]
["Gratis onlinetraining voor Excel"]
["Terug naar boven"]
["Volgende stap"]
{"$rows_empty":12}
[null,null,"Fruit","Bedrag"]
[null,null,"Appels",50]
[null,null,"Sinaasappels",20]
[null,null,"Bananen",60]
[null,null,"Citroenen",40]
[null,null,"SUM > ",{"$f":"SUM(D35:D38)","v":170}]
[]
[]
[]
[]
[null,null,"Artikel","Bedrag"]
[null,null,"Auto's",20]
[null,null,"Vrachtwagens",10]
[null,null,"Fietsen",10]
[null,null,"Skates",40]
[]
[{"$nulls":3},"Totaal:",null,"Aanvullende waarde","Nieuwe totaal"]
[{"$nulls":3},{"$f":"SUM(D45:D48,100)","v":180},null,100,{"$f":"SUM(D45:D48,F51)","v":180}]

{"sheet":"GEMIDDELDE","index":3,"n_rows":15,"n_cols":7,"rows_kept":15}
["Functie GEMIDDELDE"]
["Gebruik de functie GEMIDDELDE om het gemiddelde van getallen in een bereik van cellen te krijgen.",null,"Fruit","Bedrag",null,"Vlees","Bedrag"]
["Selecteer cel D7 en gebruik vervolgens AutoSom om een functie GEMIDDELDE toe te voegen.",null,"Appels",50,null,"Rundvlees",50]
["Nu Selecteer cel G7 en voer een GEMIDDELDE-functie in door =GEMIDDELDE(G3:G6) te typen. ",null,"Sinaasappels",20,null,"Kip",30]
["In cel D15, kunt u AutoSom gebruiken of een andere GEMIDDELDE-functie typen. ",null,"Bananen",60,null,"Varken",10]
["OOK HANDIG\nSelecteer een bereik met getallen en kijk vervolgens op de statusbalk voor een direct gemiddelde.\n",null,"Citroenen",40,null,"Vis",50]
["Het vorige blad activeren",null,"GEMIDDELDE >",null,null,"GEMIDDELDE >"]
["Ga naar het volgende blad"]
["EXTRA PUNTEN\nProbeer hier MEDIAAN of MODUS. \n\nMEDIAAN retourneert de waarde in het midden van de gegevensset, terwijl \nMODUS degene die het meest voorkomt, retourneert.\n",null,"Artikel","Bedrag",null,"Artikel","Bedrag"]
["Koppelingen voor meer informatie op internet",null,"Brood",50,null,"Brood",50]
["Selecteren voor meer informatie op internet over de functie GEMIDDELDE",null,"Donuts",100,null,"Donuts",100]
["Selecteren voor meer informatie op internet over de functie MEDIAAN",null,"Koekjes",40,null,"Koekjes",40]
["Selecteren voor meer informatie op internet over de functie MODUS",null,"Cake",50,null,"Cake",50]
["Selecteren voor meer informatie over gratis onlinetraining voor Excel op internet",null,"Taarten",20,null,"Taarten",20]
[null,null,"GEMIDDELDE >"]

{"sheet":"MIN EN MAX","index":4,"n_rows":15,"n_cols":7,"rows_kept":15}
["Functies MIN en MAX"]
["Gebruik de MIN functie voor het minimum in een bereik van cellen.",null,"Fruit","Bedrag",null,"Vlees","Bedrag"]
["Gebruik de MAX functie voor het maximum in een bereik van cellen.",null,"Appels",50,null,"Rundvlees",50]
["Selecteer cel D7 en gebruik vervolgens de Wizard AutoSom om een functie MIN toe te voegen.\n",null,"Sinaasappels",20,null,"Kip",30]
["Selecteer nu cel G7 en voer een MAX-functie in door =MAX(G3:G6) te typen.\n",null,"Bananen",60,null,"Varken",10]
["In cel D15 kunt u de Wizard AutoSom gebruiken of typen om een MIN- of MAX-functie in te voeren. \n",null,"Citroenen",40,null,"Vis",50]
["Meer informatie op internet\n",null,"MIN >",null,null,"MAX >"]
["Alles over de functie MIN"]
["Alles over de functie MAX",null,"Artikel","Bedrag",null,"Artikel","Bedrag"]
["Gratis onlinetraining voor Excel",null,"Brood",50,null,"Brood",50]
["HANDIG OM TE WETEN\nU kunt MIN of MAX gebruiken met meerdere bereiken of waarden om grotere waarden of kleinere waarden weer te geven, zoals =MIN(A1:A10;B1:B10) of =MAX(A1:A10;B1), waar B1 een drempelwaarde is, zoals 10, in dat geval zal de formule nooit een resultaat kleiner dan 10 retourneren.\n",null,"Donuts",100,null,"Donuts",100]
[null,null,"Koekjes",40,null,"Koekjes",40]
[null,null,"Cake",50,null,"Cake",50]
[null,null,"Taarten",20,null,"Taarten",20]
[null,null,"MIN of MAX >",{"$nulls":3},{"$f":"MIN(G10:G14,10)","v":10}]

{"sheet":"Datum en tijd","index":5,"n_rows":47,"n_cols":6,"rows_kept":47,"merged":[[4,2,4,3],[26,2,26,3],[30,2,30,3],[44,2,44,3]]}
["Datumfuncties"]
["In Excel kunt u de huidige datum weergeven op basis van de landinstellingen van uw computer. U kunt ook datums optellen en aftrekken."]
["Bekijk de functie VANDAAG, die de datum van vandaag retourneert. Dit zijn live en vluchtige functies, zodat wanneer u uw werkmap morgen opent, de datum van morgen wordt weergegeven. Voer in =VANDAAG() in cel D6. \n"]
["Datums aftrekken: typ uw volgende verjaardag in de notatie DD-MM-JJ in cel D7 en in Excel wordt getoond hoeveel dagen verwijderd dit is met behulp van =D7-D6 in cel D8.\n"]
["Datums optellen: stel dat u de vervaldatum van een factuur wilt weten of wanneer een bibliotheekboek moet worden ingeleverd. U kunt dagen optellen bij een datum om erachter te komen. Voer een willekeurige aantal dagen in cel D10 in. In cel D11 hebben we =D6+D10 toegevoegd om de vervaldatum na vandaag te berekenen.\n",null,"Datumfuncties"]
["HANDIG OM TE WETEN\nIn Excel worden datums en tijden gebaseerd op het aantal dagen vanaf 1 januari 1900. Tijden worden bewaard in decimale gedeelten van een dag op basis van minuten. Dus 01-01-2017 12:30 wordt in werkelijkheid opgeslagen als 42736.5208. Als de tijd of datum op deze manier wordt weergegeven als getal kunt u drukken op Ctrl+1 > Getal > Selecteer een datum- of tijdsindeling. ",null,"Huidige datum:",null,null,{"$f":"IF(D6=TODAY(),\"Het is duidelijk!\",\"\")","v":""}]
["BELANGRIJKE INFORMATIE\nAls u niet wilt dat door Excel een negatief getal wordt weergegeven wilt omdat u uw verjaardag nog niet hebt ingevoerd, kunt u een ALS-functie als volgt gebruiken: =ALS(D7=\"\";\"\";D7-D6), wat betekent 'Als D7 gelijk is aan niets, niets weergeven, anders D7 min D6 weergeven'.\n",null,"Uw geboortedatum:"]
["Tijdsfuncties",null,"Dagen tot uw verjaardag:",{"$f":"D7-D6","v":0}]
["In Excel kunt u de huidige tijd weergeven op basis van de landinstellingen van uw computer. U kunt ook tijden optellen en aftrekken. U moet bijvoorbeeld bijhouden hoeveel uren een werknemer elke week werkt en het salaris en de overuren berekenen.\n"]
["Typ in cel D28 =NU(), deze geeft dan de huidige tijd weer die elke keer wanneer het werkblad wordt berekend, wordt bijgewerkt. Als u de tijdnotatie wilt wijzigen, gaat u naar Ctrl+1 > Getal > Tijd en selecteert u de gewenste notatie.\n",null,"Dagen respijtperiode:"]
["Uren tussen tijden optellen: in cel D36 hebben we =((D35-D32)-(D34-D33))*24 ingevoerd, hierdoor worden de begin- en eindtijden berekend en vervolgens wordt de tijd voor lunch ervan afgetrokken. De *24 aan het einde van de formule converteert het decimale gedeelte van de dag naar uren. U moet echter de cel opmaken als een getal. Als u dat wilt doen, gaat u naar Start > Opmaak > Cellen (Ctrl+1) > Getal > Getal > 2 decimalen.\n\n",null,"Factuurvervaldatum op:",{"$f":"D6+D10","v":"00:00:00"}]
["De formule kan als volgt worden samengevat: Trek de Time-out af van de Time-In, trek vervolgens de lunchtijden ervan af, vermenigvuldig dat met 24 om de decimale tijd van Excel in uren te converteren of =((Vertrek - Aankomst)-(Aankomst voor lunch - Vertrek voor lunch))*24."]
["Vorige"]
["Volgende"]
["Meer informatie op internet"]
["Alles over de functie VANDAAG"]
["Alles over de functie NU"]
["Alles over de functie DATUM"]
["Gratis onlinetraining voor Excel"]
{"$rows_empty":7}
[null,null,"Tijdsfuncties"]
[null,null,"Huidige tijd:"]
[]
[]
[null,null,"Totaal dagelijks gewerkte uren"]
[null,null,"Aankomst:","08:00:00"]
[null,null,"Vertrek voor lunch:","12:00:00"]
[null,null,"Aankomst voor lunch:","13:00:00"]
[null,null,"Vertrek:","17:00:00"]
[null,null,"Totaal aantal uren:",{"$f":"((D35-D32)-(D34-D33))*24","v":8.000000000000002}]
{"$rows_empty":8}
[null,null,"Statische datum en tijd"]
[null,null,"Datum:","2017-09-27"]
[null,null,"Tijd:","08:52:00"]

{"sheet":"Tekst en getallen samenvoegen","index":6,"n_rows":37,"n_cols":6,"rows_kept":37,"merged":[[26,2,26,3],[30,2,30,3],[34,2,34,3]]}
["Tekst uit verschillende cellen samenvoegen"]
["In Excel zijn er vaak momenten dat u tekst die in meerdere cellen staat, wilt samenvoegen. Dit voorbeeld is zeer gebruikelijk, waar u de voor- en achternamen hebt en die wil combineren als voornaam, achternaam of volledige naam. Gelukkig kunnen we dat in Excel doen met het ampersand-teken (&), wat u kunt invoegen met Shift+7.\n",null,"Voornaam","Achternaam","Voornaam, Achternaam","Volledige naam"]
["Typ in cel E3 =D3&C3 om de voor- en achternaam samen te voegen. \n",null,"Menna","Arink",{"$f":"D3&\", \"&C3","v":"Arink, Menna"},{"$f":"C3&\" \"&D3","v":"Menna Arink"}]
["SmithNancy ziet er echter niet helemaal goed uit. We moeten een komma en een spatie toevoegen. Om dit te doen gebruiken we aanhalingstekens om een nieuwe tekenreeks te maken. Voer deze keer in =D3&\", \"&C3. Het deel &\", \"& laat ons een komma en een spatie met de tekst in de cellen samenvoegen.\n",null,"Wander","Noord"]
["Om de volledige naam weer te geven, combineren we voornaam en achternaam, maar gebruiken een spatie zonder een komma. Typ in F3 =C3&\" \"&D3.\n",null,"jan","Kuijken"]
["Geavanceerde functies",null,"Elize","Jansen"]
["Volgende",null,"Jimmy","De graaf"]
["Tekst en getallen samen gebruiken",null,"Floris","Neumann"]
["Nu gebruiken we de & voor het samenvoegen van tekst en cijfers, niet alleen tekst en tekst\n\nBekijk de cellen C28:D29. Ziet u hoe de datum en tijd in afzonderlijke cellen staan? U kunt deze samenvoegen met het &-symbool zoals u ziet in de cellen C32:C33, maar die zien er niet goed uit, toch? Helaas weet Excel niet hoe u de getallen wilt opmaken, zodat ze worden opgedeeld op hun basisindeling, in dit geval is dat de seriële datum. We moeten Excel expliciet aangeven hoe het getalgedeelte van de formule moet worden opgemaakt, zodat het op de gewenste manier wordt weergegeven in de resulterende tekenreeks. U kunt dat doen met de functie TEKST en een notatiecode.",null,"Robert","Veenhuizen"]
["Typ in cel C36 =C28&\" \"&TEKST(D28;\"DD-MM-JJJJ\"). ns de Verenigde Staten MM-DD-JJJJ notatiecode voor dag-maand-jaar, als 09-25-2017.\n",null,"Femke","Vossen"]
["Typ in cel C37 =C29&\" \"&TEKST (D29;\" U: MM \"). U: MM is de notatiecode in de Verenigde Staten voor uren: minuten, als 13:30.\n\n"]
["OOK HANDIG\nFormules, met name grote formules, zijn soms moeilijk te lezen, maar u kunt de delen met spaties als volgt splitsen:\n\n=C28 & \" \" & TEKST(D28;\"DD-MM-JJJJ\")"]
["OOK DE MOEITE WAARD\nAls u niet weet welke notatiecode u moet gebruiken, kunt u met Ctrl+1 > Getal de gewenste manier om een getal weer te geven, gebruiken. Selecteer vervolgens de optie Aangepast. U kunt de notatiecode die wordt weergegeven in de formule kopiëren."]
["Meer informatie op internet"]
["Alles over de functie TEKST"]
["Tekst en getallen samenvoegen"]
["Gratis onlinetraining voor Excel"]
{"$rows_empty":9}
[null,null,"Tekst en getallen gebruiken"]
[null,null,"Huidige datum:",{"$f":"TODAY()","v":"2021-10-19"}]
[null,null,"Huidige tijd:",{"$f":"NOW()","v":44488.452580324076}]
[]
[null,null,"Tekst en getallen samenvoegen"]
[null,null,{"$f":"C28&\" \"&D28","v":"Huidige datum: 44488"}]
[null,null,{"$f":"C29&\" \"&D29","v":"Huidige tijd: 44488.4525803241"}]
[]
[null,null,"Tekst en getallen opmaken"]
[null,null,{"$f":"C28 &\" \"& TEXT(D28,\"DD-MM-JJJJ\")","v":"Huidige datum: 19-10-JJJJ"}]
[null,null,{"$f":"C29&\" \"&TEXT(D29,\"U:MM\")","v":"Huidige tijd: U:10"}]

{"sheet":"ALS-instructies","index":7,"n_rows":37,"n_cols":6,"rows_kept":37,"merged":[[7,2,7,3]]}
["ALS-instructies"]
["Met ALS-instructies kunt u logische vergelijkingen maken tussen voorwaarden. In een ALS-instructie wordt over het algemeen aangegeven dat als aan een voorwaarde wordt voldaan, iets moet worden uitgevoerd en anders moet er iets anders gebeuren. De formules kunnen tekst, waarden of zelfs andere berekeningen retourneren."]
["Typ in cel D9 =ALS(C9=\"Appel\";WAAR;ONWAAR). Het juiste antwoord is WAAR. \n"]
["Kopieer D9 naar D10. Hier moet het antwoord ONWAAR zijn, een sinaasappel is geen appel.\n"]
["Probeer een ander voorbeeld door te kijken naar de formule in cel D12. We brachten u op weg met =ALS (C12<100 \"Kleiner is dan 100\"; \"Groter dan of gelijk aan 100\"). Wat gebeurt er als u een getal dat groter is dan 100 in cel C12 invoert?\n"]
["BELANGRIJKE INFORMATIE\nWAAR en ONWAAR hoeven in tegenstelling tot andere woorden in Excel-formules niet tussen aanhalingstekens te staan en in Excel worden ze automatisch in hoofdletters weergegeven. Getallen hoeven ook niet tussen aanhalingstekens te worden geplaatst. Gewone tekst zoals Ja of Nee moet tussen aanhalingstekens worden geplaatst op de volgende manier: \n=ALS(C9=\"Appel\";\"Ja\";\"Nee\")"]
["Geavanceerde functies"]
["Volgende",null,"ALS-instructies"]
["Als-instructie met een andere functie",null,"Appel"]
["Met ALS-instructies kunnen ook extra berekeningen worden uitgevoerd als aan een bepaalde voorwaarde wordt voldaan. We gaan hier een cel evalueren om te zien of er btw in rekening moet worden gebracht en berekenen de btw als de voorwaarde waar is.\n",null,"Sinaasappel"]
["We hebben in cel F33 =ALS(E33=\"Ja\";F31*btw;0) ingevoerd, waar we btw als een Benoemd bereik hebben ingesteld met een waarde van 0,0825. In de formule staat dat als cel E33 is gelijk aan Ja cel F31 vervolgens moet worden vermenigvuldigd met de btw, anders moet een 0 worden geretourneerd.\n\nProbeert u Ja in cel E33 in Nee te wijzigen om de berekening te zien wijzigen."]
["We hebben vervolgens een ALS-instructie toegevoegd om verzendkosten te berekenen indien nodig. In cel F35 wordt =ALS(E35=\"Ja\";SOM(D28:D29)*1.25;0) weergegeven. Deze formule stelt dat 'Als cel E35 Ja is, de kolom Waarde in de bovenstaande tabel moet worden opgeteld en vermenigvuldigd met 1,25, anders moet een 0 worden geretourneerd'.\n",null,50,{"$f":"IF(C12<100,\"Kleiner is dan 100\",\"Groter dan of gelijk aan 100\")","v":"Kleiner is dan 100"}]
["Wijzig vervolgens de 1,25 in de formule in cel F35 in \"Verzendkosten\". Terwijl u typt, moet de functie automatisch corrigeren in Excel die voor u vinden. Als dit het geval is, drukt u op Tab om die in te voeren. Dit is een Benoemd bereik en we hebben dit ingevoerd via Formules > Naam definiëren. Als u nu ooit de verzendkosten moet wijzigen, hoeft u dit maar op een plaats te doen en kunt u de naam Verzenden gebruiken op een willekeurige plaats in de werkmap.\n\n"]
["HANDIG OM TE WETEN\nWanneer u een formule maakt, worden in Excel automatisch gekleurde randen geplaatst om bereiken waarnaar wordt verwezen in de formule en de bijbehorende bereiken in de formule hebben dezelfde kleur. U kunt dit zien als u cel F33 selecteert en op F2 drukt om de formule bewerken."]
["TIP VAN EXPERT\nMet Benoemde bereiken kunt u gegevens of waarden definiëren op één locatie en ze vervolgens ergens anders in de werkmap opnieuw gebruiken. U kunt alle benoemde bereiken in deze werkmap zien via Formules > Namen beheren. Klik hier voor meer informatie. Klik hier voor meer informatie.\n"]
["Vorige"]
["Volgende"]
["Meer informatie op internet"]
["Alles over de functie ALS"]
["Alles over de functie ALS.VOORWAARDEN"]
["Geavanceerde ALS-instructies"]
["Gratis onlinetraining voor Excel"]
[]
[]
[]
[]
[null,null,"Artikel","Aantal","Kosten","Totaal"]
[null,null,"Widget",2,{"v":9.760711585683554,"d":"€ 9.76"},{"$f":"'ALS-instructies'!$E$28:$E$29*'ALS-instructies'!$D$28:$D$29","v":{"v":19.521423171367108,"d":"€ 19.52"}}]
[null,null,"Dingetje",3,{"v":3.4189202461080024,"d":"€ 3.42"},{"v":10.256760738324008,"d":"€ 10.26"}]
[]
[{"$nulls":3},"Subtotaal",{"$f":"SUM('ALS-instructies'!$E$28:$E$29)","v":{"v":13.179631831791557,"d":"€ 13.18"}},{"$f":"SUM('ALS-instructies'!F28:F29)","v":{"v":29.778183909691116,"d":"€ 29.78"}}]
[]
[{"$nulls":3},"Btw?","Ja",{"$f":"IF(E33=\"Ja\",F31*btw,0)","v":{"v":2.456700172549517,"d":"€ 2.46"}}]
[]
[{"$nulls":3},"Verzendkosten?","Ja",{"$f":"IF(E35=\"Ja\",SUM(D28:D29)*1.25,0)","v":{"v":6.25,"d":"€ 6.25"}}]
[]
[{"$nulls":3},"Totaal",null,{"$f":"SUM(F33,F31,F35)","v":{"v":38.48488408224063,"d":"€ 38.48"}}]

{"sheet":"VERT.ZOEKEN","index":8,"n_rows":43,"n_cols":7,"rows_kept":43}
["VERT.ZOEKEN"]
["VERT.ZOEKEN is een van de meest gebruikte functies in Excel (en ook een van onze favorieten). Met VERT.ZOEKEN kunt u een waarde opzoeken in een kolom aan de linkerkant en vervolgens informatie weergeven in een andere kolom aan de rechterkant als er een overeenkomst wordt gevonden. VERT.ZOEKEN:\n"]
["=VERT.ZOEKEN(A1;B:C;2;ONWAAR)"]
["Wat u wilt u zoeken?"]
["Als u het vindt, hoeveel kolommen naar rechts wilt u een waarde krijgen?"]
["Waar wilt u zoeken?"]
["Wilt u een exacte of niet-geheel exacte overeenkomst?"]
["Typ in cel D22 =VERT.ZOEKEN(C22;C17:D20;2;ONWAAR). Het juist antwoord voor appels is 50. VERT.ZOEKEN zocht appels, heeft die gevonden en heeft het aantal geretourneerd in de kolom rechts daarvan.\n\n"]
["Probeer het nu zelf in de sectie vlees in cel G22. U moet uitkomen op =VERT.ZOEKEN(F22;F17:G20;2;ONWAAR).\n\n"]
["EXPERIMENT\nProbeer verschillende items te selecteren in de vervolgkeuzelijsten. U ziet dat de resultaatcellen zichzelf onmiddellijk bijwerken met nieuwe waarden."]
["Geavanceerde functies"]
["Volgende"]
["VERT.ZOEKEN en #N/B"]
["Er doet zich steevast een situatie voor waarin VERT.ZOEKEN niet kan vinden waarnaar u zoekt en een fout (# N/B) weergeeft. Soms komt dat omdat de zoekwaarde niet bestaat of omdat de verwijzingscel nog geen waarde heeft.\n"]
["Als u weet dat de opzoekwaarde bestaat, maar de fout wilt verbergen als de verwijzingscel leeg is, kunt u een ALS-instructie gebruiken. In dit geval voltooien we de bestaande formule met VERT.ZOEKEN in cel D43 op de volgende manier:\n\n=ALS(C43 =\"\";\"\";VERT.ZOEKEN(C43;C37:D41;2;ONWAAR))\n\nDeze formule stelt dat als cel C43 gelijk is aan niets (\"\") er niets wordt geretourneerd en anders de resultaten van de functie VERT.ZOEKEN. Let op het tweede sluitingshaakje aan het einde van de formule. Hiermee sluit u de ALS-instructie.\n"]
["Als u niet zeker weet dat de waarde die wordt opgezocht bestaat, maar u de fout #N/B nog steeds wilt onderdrukken, kunt u een foutafhandelingsfunctie gebruiken genaamd ALS.FOUT in cel G43: =ALS.FOUT(VERT.ZOEKEN(F43;F37:G41;2;ONWAAR);\"\"). ALS.FOUT stelt dat als de functie VERT.ZOEKEN een geldig resultaat geeft, dat moet worden weergegeven en anders niets moet worden weergeven (\"\"'). We hebben hier niets weergegeven (\"\"), maar u kunt ook getallen (0, 1, 2, enz.) of tekst zoals 'Formule is niet correct' weergeven.\n",null,"Fruit","Bedrag",null,"Vlees","Bedrag"]
["BELANGRIJKE INFORMATIE\nALS.FOUT is een algemene handler voor fouten, wat betekent dat die elke fout die de formule retourneert, onderdrukt. Dit kan tot problemen leiden als Excel u een melding geeft dat de formule een legitieme fout bevat die moet worden opgelost.\n\nVuistregel is geen handlers voor fouten toe te voegen aan uw formules totdat u er absoluut zeker van bent dat ze goed werken.",null,"Appels",50,null,"Rundvlees",50]
["Vorige",null,"Sinaasappels",20,null,"Kip",30]
["Volgende",null,"Bananen",60,null,"Varken",10]
["Meer informatie op internet",null,"Citroenen",40,null,"Vis",50]
["Alles over de functie VERT.ZOEKEN"]
["Alles over de functies INDEX/VERGELIJKEN",null,"Appels",null,null,"Varken"]
["Alles over de functie ALS.FOUT"]
["Een draaitabel gebruiken om werkbladgegevens te analyseren"]
["Gratis onlinetraining voor Excel"]
{"$rows_empty":9}
[null,null,"De werking van de functie SOM in cel D42 kan als volgt worden samengevat: De waarden optellen in de cellen D38, D39, D40 en D41."]
[null,null,"Artikel","Bedrag",null,"Artikel","Bedrag"]
[null,null,"Brood",50,null,"Brood",50]
[null,null,"Donuts",100,null,"Donuts",100]
[null,null,"Koekjes",40,null,"Koekjes",40]
[null,null,"Cake",50,null,"Cake",50]
[null,null,"Taarten",20,null,"Taarten",20]
[]
[{"$nulls":3},{"$f":"VLOOKUP(C43,C37:D41,2,FALSE)","v":{"$error":"#N/A"}},null,"Gebak",{"$f":"IFERROR(VLOOKUP(F43,F37:G41,2,FALSE),\"\")","v":""}]

{"sheet":"Voorwaardelijke functies","index":9,"n_rows":123,"n_cols":34,"rows_kept":123}
["Voorwaardelijke functies - SOMMEN.ALS"]
["Met voorwaardelijke functies kunt u het totaal, gemiddelde, aantal of minimum en maximum in een bereik berekenen op basis van een bepaalde voorwaarde of criteria die u opgeeft. Zoals, uit alle fruit in de lijst, hoeveel appels zijn er? Of hoeveel sinaasappels komen uit Florida?",null,"Fruit","Bedrag",null,"Fruit","Type","Bedrag",{"$nulls":17},"Fruit",null,"Appels",null,"Sinaasappels",null,"Bananen",null,"Citroenen"]
["Met SOM.ALS kunt u optellen in een bereik op basis van een specifiek criterium dat u zoekt in een ander bereik, zoals het aantal appels optellen. Selecteer cel D17 en typ =SOM.ALS(C3:C14;C17;D3:D14). SOM.ALS is als volgt gestructureerd:",null,"Appels",50,null,"Appels","Fuji",50,{"$nulls":17},"Appels",null,"Fuji",null,"Florida",null,"Cavendish",null,"Ruwe"]
["=SOM.ALS(C3:C14;C17;D3:D14)",null,"Sinaasappels",20,null,"Sinaasappels","Florida",20,{"$nulls":17},"Sinaasappels",null,"Honeycrisp",null,"Navel",null,"Lady Finger",null,"Eureka"]
["Welk bereik wilt u gebruiken?",null,"Bananen",60,null,"Bananen","Cavendish",60,{"$nulls":17},"Bananen"]
["Welke waarde (tekst of getal) wilt u zoeken?",null,"Citroenen",40,null,"Citroenen","Ruwe",40,{"$nulls":17},"Citroenen"]
["Voor elke gevonden overeenkomst, in welk bereik wilt u optellen?",null,"Appels",50,null,"Appels","Honeycrisp",50]
["SOMMEN.ALS is hetzelfde als SOM.ALS, maar u kunt meerdere criteria gebruiken. Dus in dit voorbeeld kunt u zoeken op Fruit en Type, in plaats van alleen Fruit. Selecteer cel H17 en typ =SOMMEN.ALS(H3:H14;F3:F14;F17;G3:G14;G17). SOMMEN.ALS is als volgt gestructureerd:\n",null,"Sinaasappels",20,null,"Sinaasappels","Navel",20]
["=SOMMEN.ALS(H3:H14;F3:F14;F17;G3:G14;G17)",null,"Bananen",60,null,"Bananen","Lady Finger",60]
["Welk bereik wilt u optellen?",null,"Citroenen",40,null,"Citroenen","Eureka",40]
["Dit is het eerste bereik om in te zoeken naar overeenkomsten",null,"Appels",50,null,"Appels","Honeycrisp",50]
["Dit zijn de criteria voor de eerst overeenkomst",null,"Sinaasappels",20,null,"Sinaasappels","Navel",20]
["Dit is het tweede bereik om in te zoeken naar overeenkomsten",null,"Bananen",60,null,"Bananen","Cavendish",60]
["Dit zijn de criteria voor de tweede overeenkomst",null,"Citroenen",40,null,"Citroenen","Eureka",40]
["TIP VAN EXPERT\nElke cel Fruit en Type bevat een vervolgkeuzelijst waar u verschillende fruitsoorten kunt selecteren. Probeer het zelf en bekijk hoe de formules automatisch worden bijgewerkt."]
["Geavanceerde functies",null,"Fruit","SOM.ALS",null,"Fruit","Type","SOMMEN.ALS"]
["Volgende stap",null,"Appels",null,null,"Sinaasappels","Florida"]
["Voorwaardelijke functies - AANTAL.ALS"]
["Met AANTAL.ALS en AANTALLEN.ALS kunt u waarden tellen in een bereik op basis van een criterium dat u opgeeft. Ze zijn iets anders dan de andere ALS- en ALS.VOORWAARDEN-functies in de zin dat ze alleen een bereik en criteria hebben. Er wordt niet één bereik geëvalueerd om vervolgens in een ander bereik samen te vatten."]
["Selecteer cel D64 en typ =AANTAL.ALS(C50:C61;C64). AANTAL.ALS is als volgt gestructureerd:"]
["=AANTAL.ALS(C50:C61;C64)"]
["Welk bereik wilt u gebruiken?"]
["Welke waarde (tekst of getal) wilt u zoeken?"]
["AANTAL.ALS is hetzelfde als SOM.ALS, maar u kunt meerdere criteria gebruiken. Dus in dit voorbeeld kunt u zoeken op Fruit en Type, in plaats van alleen Fruit. Selecteer cel H64 en typ =AANTALLEN.ALS(F50:F61;F64;G50:G61;G64). AANTALLEN.ALS is als volgt gestructureerd:\n"]
["=AANTALLEN.ALS(F50:F61;F64;G50:G61;G64)"]
["Dit is het eerste bereik om te tellen"]
["Dit zijn de criteria voor de eerst overeenkomst"]
["Dit is het tweede bereik om te tellen"]
["Dit zijn de criteria voor de tweede overeenkomst"]
["Geavanceerde functies"]
["Volgende"]
["Meer voorwaardelijke functies"]
["U hebt al kennisgemaakt met SOM.ALS, SOMMEN.ALS, AANTAL.ALS en AANTALLEN.ALS. U kunt nu zelf andere functies proberen, zoals GEMIDDELDE(N).ALS, MAX.ALS.VOORWAARDEN en MIN.ALS.VOORWAARDEN. Deze zijn allemaal op dezelfde manier gestructureerd, dus zodra u één formule hebt geschreven, hoeft u alleen de naam van de functie te vervangen door de gewenste functie. We hebben alle functies die u nodig hebt voor cel E106 geschreven, zodat u deze kunt kopiëren en plakken of zelf typen om te oefenen.\n\nSOM.ALS =SOM.ALS(C92:C103;C106;E92:E103) \nSOMMEN.ALS =SOMMEN.ALS(E92:E103;C92:C103;C106;D92:D103;D106) \nGEMIDDELDE.ALS =GEMIDDELDE.ALS(C92:C103;C106;E92:E103) \nGEMIDDELDEN.ALS =GEMIDDELDEN.ALS(E92:E103;C92:C103;C106;D92:D103;D106)\nAANTAL.ALS =AANTAL.ALS(C92:C103;C106)\nAANTALLEN.ALS =AANTALLEN.ALS(C92:C103;C106;D92:D103;D106) \nMAX.ALS.VOORWAARDEN =MAX.ALS.VOORWAARDEN(E92:E103;C92:C103;C10;D92:D103;D106)\nMIN.ALS.VOORWAARDEN =MIN.ALS.VOORWAARDEN(E92:E103;C92:C103;C106;D92:D103;D106)"]
["Geavanceerde functies"]
["Volgende"]
["SOM.ALS met een waarde-argument"]
["Hier volgt een voorbeeld van de functie SOM.ALS die groter dan (>) gebruikt om te zoeken naar alle waarden die groter zijn dan een bepaald getal:"]
[{"$f":"SUMIF(D118:D122,\">=50\")","v":200}]
["De som van enkele waarden bepalen op basis van dit criterium:"]
["...Bekijk deze cellen...\n "]
["...en als de waarde groter is dan 50, opnemen in som.\n "]
["OPMERKING: Als u merkt dat u regelmatig voorwaardelijke formules maakt, is het mogelijk dat een draaitabel een betere oplossing is.  Bekijk dit artikel Draaitabel voor meer informatie."]
["Meer informatie op internet"]
["Alles over de functie SOM.ALS"]
["Alles over de functie SOMMEN.ALS"]
["Alles over de functie AANTAL.ALS"]
["Alles over de functie AANTALLEN.ALS"]
["Alles over de functie GEMIDDELDE.ALS"]
["Alles over de functie GEMIDDELDEN.ALS",null,"Fruit","Bedrag",null,"Fruit","Type","Bedrag"]
["Alles over de functie MIN.ALS.VOORWAARDEN",null,"Appels",50,null,"Appels","Fuji",50]
["Alles over de functie MAX.ALS.VOORWAARDEN",null,"Sinaasappels",20,null,"Sinaasappels","Florida",20]
["Een vervolgkeuzelijst maken",null,"Bananen",60,null,"Bananen","Cavendish",60]
["Gratis onlinetraining voor Excel",null,"Citroenen",40,null,"Citroenen","Ruwe",40]
["Terug naar boven",null,"Appels",50,null,"Appels","Honeycrisp",50]
["Volgende",null,"Sinaasappels",20,null,"Sinaasappels","Navel",20]
[null,null,"Bananen",60,null,"Bananen","Lady Finger",60]
[null,null,"Citroenen",40,null,"Citroenen","Eureka",40]
[null,null,"Appels",50,null,"Appels","Honeycrisp",50]
[null,null,"Sinaasappels",20,null,"Sinaasappels","Navel",20]
[null,null,"Bananen",60,null,"Bananen","Cavendish",60]
[null,null,"Citroenen",40,null,"Citroenen","Eureka",40]
[]
[null,null,"Fruit","AANTAL.ALS",null,"Fruit","Type","AANTALLEN.ALS"]
[null,null,"Appels",{"$f":"COUNTIF(C50:C61,C64)","v":3},null,"Sinaasappels","Florida",{"$f":"COUNTIFS(F50:F61,F64,G50:G61,G64)","v":1}]
{"$rows_empty":26}
[null,null,"Fruit","Type","Bedrag"]
[null,null,"Appels","Fuji",50]
[null,null,"Sinaasappels","Florida",20]
[null,null,"Bananen","Cavendish",60]
[null,null,"Citroenen","Ruwe",40]
[null,null,"Appels","Honeycrisp",50]
[null,null,"Sinaasappels","Navel",20]
[null,null,"Bananen","Lady Finger",60]
[null,null,"Citroenen","Eureka",40]
[null,null,"Appels","Honeycrisp",50]
[null,null,"Sinaasappels","Navel",20]
[null,null,"Bananen","Cavendish",60]
[null,null,"Citroenen","Eureka",40]
[]
[null,null,"Fruit","Type","Probeer het eens"]
[null,null,"Citroenen","Eureka",{"$f":"AVERAGEIFS(E92:E103,C92:C103,C106,D92:D103,D106)","v":40}]
{"$rows_empty":10}
[null,null,"Artikel","Bedrag"]
[null,null,"Brood",50]
[null,null,"Donuts",100]
[null,null,"Koekjes",40]
[null,null,"Cake",50]
[null,null,"Taarten",20]
[{"$nulls":3},{"$f":"SUMIF(D118:D122,\">=50\")","v":200}]

{"sheet":"Wizard Functie","index":10,"n_rows":14,"n_cols":4,"rows_kept":14}
["Laat de Wizard Functie u helpen"]
["Als u de naam weet van de functie die u wilt gebruiken, maar niet zeker bent hoe u die opbouwt, kunt u de Wizard Functie gebruiken om u te helpen.\n"]
["Selecteer cel D10, ga vervolgens naar Formules > Functie invoegen, typ VERT.ZOEKEN in het functievak Zoek een functie en druk op Zoeken. Wanneer VERT.ZOEKEN is gemarkeerd, klikt u onderaan op OK. Wanneer u een functie in de lijst selecteert, wordt in Excel de syntaxis weergegeven.\n"]
["Voer vervolgens de argumenten in de bijbehorende tekstvakken in. Elk argument dat u hebt ingevoerd, wordt door Excel geëvalueerd en u ziet het resultaat, met onderaan het uiteindelijke resultaat. Van elke sectie die u invoert, worden de criteria voor elk argument onderaan het formulier weergegeven. Klik op OK wanneer u klaar bent en de formule wordt automatisch voor u ingevoerd.\n\n\n",null,"Fruit","Bedrag"]
["OOK HANDIG\nU moet uitkomen op =VERT.ZOEKEN(C10;C5:D8;2;ONWAAR).",null,"Appels",50]
["HANDIG OM TE WETEN\nU kunt cellen en bereikverwijzingen typen of deze selecteren met de muis.",null,"Sinaasappels",20]
["HANDIG OM TE WETEN\nVan elke sectie van een argument dat u intypt, wordt de beschrijving aan de onderkant van het formulier weergegeven, boven het resultaat van de Formule.\n",null,"Bananen",60]
["Vorige",null,"Citroenen",40]
["Volgende"]
["Meer informatie op internet",null,"Appels",{"$f":"VLOOKUP(C10,C5:D8,2,FALSE)","v":50}]
[" Overzicht van formules in Excel"]
["Excel-functies (per categorie)"]
["Excel-functies (alfabetisch)"]
["Gratis onlinetraining voor Excel"]

{"sheet":"Fouten in formules","index":11,"n_rows":36,"n_cols":4,"rows_kept":36}
["Fouten in formules oplossen"]
["Op een bepaald moment zult u een formule met een fout tegenkomen die in Excel met #ErrorName wordt weergegeven. Fouten kunnen het handig zijn, omdat ze aantonen dat iets niet goed werkt, maar ze kunnen lastig zijn om op te lossen. Gelukkig zijn er verschillende opties waarmee u de fout kunt volgen naar de bron en deze oplossen.\n"]
["Foutcontrole: ga naar Formules > Foutcontrole. Er wordt een dialoogvenster geladen waarin de algemene oorzaak voor uw specifieke fout wordt weergegeven. De fout #N/B in cel D9 is veroorzaakt omdat er geen waarde overeenkomt met 'Appel'. U kunt dit oplossen door een waarde te gebruiken die bestaat, de fout onderdrukken met ALS.FOUT of negeren en weten dat de fout verdwijnt wanneer u een waarde gebruikt die bestaat.\n",null,"Fruit","Bedrag"]
["Als klikt op Help-informatie over deze fout, wordt een specifiek help-onderwerp voor het foutbericht geopend. Als u klikt op Berekeningsstappen weergeven, wordt een dialoogvenster Formule evalueren geladen.\n",null,"Appels",50]
["Elke keer dat u op Evalueren klikt, wordt de formule in Excel stap voor stap doorgelopen, een sectie tegelijk. Het altijd laat u niet altijd weten waarom er een fout optreedt, maar er wordt aangeven waar. Bekijk vanaf daar het help-onderwerp om te deduceren wat er mis is met de formule.\n",null,"Sinaasappels",20]
["EXPERIMENT\nWat is er hier mis? Hint: We willen de som van alle items berekenen.",null,"Bananen",60]
["HANDIG OM TE WETEN\nIn Opties kunt u de regels instellen voor wanneer er in Excel fouten worden weergegeven of genegeerd.\n",null,"Citroenen",40]
["Vorige"]
["Volgende",null,"Appel",{"$f":"VLOOKUP(C9,C3:D7,2,FALSE)","v":{"$error":"#N/A"}}]
["Meer informatie op internet"]
["Fouten opsporen in formules"]
["Niet-werkende formules voorkomen"]
["Een geneste formule stap voor stap evalueren"]
["Gratis onlinetraining voor Excel"]
{"$rows_empty":15}
[null,null,"Fruit","Bedrag"]
[null,null,"Appels",50]
[null,null,"Sinaasappels",20]
[null,null,"Bananen",60]
[null,null,"Citroenen",40]
[]
[null,null,"Totaal",{"$f":"sume(D31:D34)","v":{"$error":"#NAME?"}}]

{"sheet":"Meer informatie","index":12,"n_rows":5,"n_cols":1,"rows_kept":5}
["Meer vragen over Excel?"]
["Druk op ALT+Q en typ wat u wilt weten."]
["Lees verder. Er is meer te leren met Excel:"]
["Community: Stel vragen en kom in contact met andere enthousiaste gebruikers van Excel.\n"]
["Wat is er nog meer nieuw?\nOffice 365-abonnees krijgen voortdurend updates en nieuwe functies.\n\n"]